fUSD/lending_fUSD_20260620
["ID","MTS","AMOUNT","RATE_DAILY","PERIOD"]
[425806756,1781919040000,-500.0,0.00024999,2]
[425806755,1781919040000,-500.0,0.00024999,2]
[425806763,1781919040000,-500.0,0.00024999,2]
[425806764,1781919040000,-500.0,0.00024999,2]
[425806765,1781919040000,-500.0,0.00024999,2]
[425806769,1781919040000,-1000.0,0.00024999,2]
[425806768,1781919040000,-1000.0,0.00024999,2]
[425806766,1781919040000,-500.0,0.00024999,2]
[425806770,1781919040000,-1000.0,0.00024999,2]
[425806767,1781919040000,-500.0,0.00024999,2]
[425806771,1781919040000,-1000.0,0.00024999,2]
[425806772,1781919040000,-500.0,0.00024999,2]
[425806806,1781919040000,-176.14364569,0.00025261,2]
[425806774,1781919040000,-199.84842197,0.00025,2]
[425806807,1781919040000,-274.226415,0.0002527,14]
[425806834,1781919040000,-151.0,0.00025786,2]
[425806837,1781919040000,-2626.10166162,0.00025889,2]
[425806835,1781919040000,-5087.15049895,0.000258,2]
[425806839,1781919040000,-350.0,0.00026049,2]
[425806836,1781919040000,-1187.81567942,0.00025875,2]
[425806838,1781919040000,-350.0,0.00025945,2]
[425806841,1781919040000,-200.0,0.00026105,2]
[425806840,1781919040000,-151.0,0.00026105,2]
[425806842,1781919040000,-1783.19,0.00026219,2]
[425806844,1781919040000,-161.60060098,0.00026253,30]
[425806847,1781919040000,-633.49537878,0.00026403,2]
[425806831,1781919040000,-384.502733,0.00025786,2]
[425806850,1781919040000,-455.9418,0.00026487,2]
[425806843,1781919040000,-161.60060098,0.00026253,30]
[425806845,1781919040000,-151.0,0.00026296,2]
[425806846,1781919040000,-200.0,0.000263,2]
[425806849,1781919040000,-150.0,0.00026487,5]
[425806851,1781919040000,-377.866388,0.00026487,2]
[425806853,1781919040000,-357.339598,0.0002649,2]
[425806855,1781919040000,-166.3542059,0.000265,2]
[425806858,1781919040000,-195.42216013,0.000265,2]
[425806854,1781919040000,-1884.01203415,0.000265,2]
[425806852,1781919040000,-273.259692,0.00026487,2]
[425806857,1781919040000,-185.80986364,0.000265,2]
[425806848,1781919040000,-400.0,0.00026428,2]
[425806856,1781919040000,-206.47227727,0.000265,2]
[425806805,1781919040000,-350.0,0.00025222,2]
[425806832,1781919040000,-384.502733,0.00025786,2]
[425806809,1781919040000,-150.32,0.00025388,30]
[425806804,1781919040000,-159.7,0.00025049,7]
[425806802,1781919040000,-200.0,0.00025009,2]
[425806803,1781919040000,-150.32,0.00025023,7]
[425806810,1781919040000,-155.86,0.0002544,30]
[425806815,1781919040000,-151.0,0.00025557,2]
[425806833,1781919040000,-384.502733,0.00025786,2]
[425806814,1781919040000,-200.0,0.00025543,2]
[425806822,1781919040000,-500.0,0.00025685,2]
[425806816,1781919040000,-200.0,0.00025557,2]
[425806817,1781919040000,-2926.0,0.00025625,5]
[425806818,1781919040000,-400.0,0.00025648,2]
[425806812,1781919040000,-206.0,0.00025484,2]
[425806813,1781919040000,-350.0,0.00025506,2]
[425806820,1781919040000,-161.600601,0.00025658,30]
[425806821,1781919040000,-161.60060099,0.00025658,30]
[425806824,1781919040000,-300.0,0.00025785,10]
[425806825,1781919040000,-307.29468666,0.00025785,10]
[425806828,1781919040000,-2863.82,0.00025786,2]
[425806826,1781919040000,-3308.61,0.00025786,2]
[425806827,1781919040000,-980.44,0.00025786,2]
[425806823,1781919040000,-200.0,0.00025709,2]
[425806829,1781919040000,-43024.78,0.00025786,2]
[425806830,1781919040000,-384.502733,0.00025786,2]
[425806819,1781919040000,-513.01664817,0.00025658,2]
[425806895,1781919041000,-429.91477368,0.00027397,2]
[425806896,1781919041000,-1000.0,0.00027397,20]
[425806893,1781919041000,-151.0,0.00027397,2]
[425806892,1781919041000,-519.01954751,0.00027397,2]
[425806888,1781919041000,-412.0,0.00027381,2]
[425806889,1781919041000,-416.29784631,0.00027397,2]
[425806890,1781919041000,-150.0,0.00027397,2]
[425806894,1781919041000,-151.0,0.00027397,2]
[425806891,1781919041000,-1500.0,0.00027397,2]
[425806887,1781919041000,-500.0,0.00027318,2]
[425806899,1781919041000,-5221.05,0.000274,2]
[425806911,1781919041000,-500.0,0.0002767,15]
[425806897,1781919041000,-300.0,0.00027397,2]
[425806901,1781919041000,-5221.05,0.000274,2]
[425806900,1781919041000,-5221.05,0.000274,2]
[425806904,1781919041000,-150.0,0.00027547,5]
[425806902,1781919041000,-5221.05,0.000274,2]
[425806903,1781919041000,-500.0,0.000275,7]
[425806906,1781919041000,-1884.01203415,0.000276,2]
[425806907,1781919041000,-206.47227727,0.000276,2]
[425806905,1781919041000,-400.0,0.00027581,2]
[425806908,1781919041000,-466.08910929,0.00027635,2]
[425806910,1781919041000,-500.0,0.0002767,15]
[425806885,1781919041000,-206.47227727,0.000273,2]
[425806898,1781919041000,-5221.05,0.000274,2]
[425806886,1781919041000,-500.0,0.00027318,2]
[425806870,1781919041000,-310.05050605,0.00026998,2]
[425806881,1781919041000,-5087.15049895,0.00027133,2]
[425806909,1781919041000,-500.0,0.0002767,15]
[425806859,1781919041000,-227.0,0.00026617,7]
[425806861,1781919041000,-200.0,0.00026653,2]
[425806862,1781919041000,-1884.01203415,0.000267,2]
[425806860,1781919041000,-151.0,0.00026653,2]
[425806864,1781919041000,-195.42216013,0.000267,2]
[425806873,1781919041000,-200.0,0.00027057,2]
[425806863,1781919041000,-206.47227727,0.000267,2]
[425806865,1781919041000,-310.0,0.000268,2]
[425806866,1781919041000,-296.0949529,0.00026843,2]
[425806868,1781919041000,-500.0,0.00026945,2]
[425806883,1781919041000,-200.0,0.00027201,2]
[425806867,1781919041000,-2626.10166162,0.00026878,2]
[425806871,1781919041000,-1884.01203415,0.00027,2]
[425806869,1781919041000,-500.0,0.00026998,2]
[425806874,1781919041000,-200.0,0.00027115,2]
[425806875,1781919041000,-3805.0,0.00027125,5]
[425806876,1781919041000,-3047.0,0.00027125,5]
[425806878,1781919041000,-384.502733,0.00027125,2]
[425806879,1781919041000,-384.502733,0.00027125,2]
[425806877,1781919041000,-384.502733,0.00027125,2]
[425806880,1781919041000,-384.502733,0.00027125,2]
[425806882,1781919041000,-502.0,0.00027137,2]
[425806884,1781919041000,-1884.01203415,0.000273,2]
[425806872,1781919041000,-206.47227727,0.00027,2]
[425806912,1781919041000,-200.0,0.00027749,2]
[425806913,1781919041000,-200.0,0.00027814,2]
[425806968,1781919041000,-500.0,0.00028016,2]
[425806949,1781919041000,-152.0,0.00028016,2]
[425806939,1781919041000,-1842.0326633,0.00028016,2]
[425806942,1781919041000,-1910.18787185,0.00028016,2]
[425806945,1781919041000,-2054.15682156,0.00028016,2]
[425806947,1781919041000,-152.0,0.00028016,2]
[425806946,1781919041000,-500.0,0.00028016,2]
[425806950,1781919041000,-381.80942428,0.00028016,2]
[425806955,1781919041000,-152.0,0.00028016,2]
[425806954,1781919041000,-500.0,0.00028016,2]
[425806953,1781919041000,-721.12765534,0.00028016,2]
[425806956,1781919041000,-500.0,0.00028016,2]
[425806940,1781919041000,-209.40437684,0.00028016,2]
[425806962,1781919041000,-500.0,0.00028016,2]
[425806961,1781919041000,-152.0,0.00028016,2]
[425806957,1781919041000,-152.0,0.00028016,2]
[425806951,1781919041000,-500.0,0.00028016,2]
[425806958,1781919041000,-500.0,0.00028016,2]
[425806959,1781919041000,-152.0,0.00028016,2]
[425806963,1781919041000,-152.0,0.00028016,2]
[425806964,1781919041000,-500.0,0.00028016,2]
[425806966,1781919041000,-500.0,0.00028016,2]
[425806967,1781919041000,-500.0,0.00028016,2]
[425806965,1781919041000,-152.0,0.00028016,2]
[425806914,1781919041000,-320.1444,0.00027825,2]
[425806960,1781919041000,-500.0,0.00028016,2]
[425806937,1781919041000,-151.0,0.00028016,2]
[425806952,1781919041000,-152.0,0.00028016,2]
[425806943,1781919041000,-1980.8648231,0.00028016,2]
[425806941,1781919041000,-152.0,0.00028016,2]
[425806917,1781919041000,-500.0,0.00027979,15]
[425806916,1781919041000,-1187.81567942,0.00027913,2]
[425806918,1781919041000,-402.47050455,0.00028016,2]
[425806920,1781919041000,-1068.11,0.00028016,2]
[425806919,1781919041000,-1030.0,0.00028016,2]
[425806921,1781919041000,-1107.63007,0.00028016,2]
[425806922,1781919041000,-1148.61238259,0.00028016,2]
[425806924,1781919041000,-1235.18214925,0.00028016,2]
[425806923,1781919041000,-1191.11104074,0.00028016,2]
[425806925,1781919041000,-1280.88388877,0.00028016,2]
[425806927,1781919041000,-1377.42282658,0.00028016,2]
[425806928,1781919041000,-1428.38747117,0.00028016,2]
[425806915,1781919041000,-2626.10166162,0.00027867,2]
[425806944,1781919041000,-152.0,0.00028016,2]
[425806929,1781919041000,-174.61919141,0.00028016,2]
[425806930,1781919041000,-151.0,0.00028016,2]
[425806932,1781919041000,-1536.04360648,0.00028016,2]
[425806936,1781919041000,-1712.93078311,0.00028016,2]
[425806933,1781919041000,-1592.87721992,0.00028016,2]
[425806935,1781919041000,-578.20924308,0.00028016,2]
[425806931,1781919041000,-1481.2378076,0.00028016,2]
[425806934,1781919041000,-1651.81367706,0.00028016,2]
[425806938,1781919041000,-1776.30922209,0.00028016,2]
[425806948,1781919041000,-151.0,0.00028016,2]
[425806926,1781919041000,-1328.27659266,0.00028016,2]
[425807005,1781919042000,-381.80942428,0.00028564,2]
[425807002,1781919042000,-151.0,0.00028564,2]
[425807004,1781919042000,-151.0,0.00028564,2]
[425806999,1781919042000,-11627.44693429,0.00028531,14]
[425806996,1781919042000,-151.0,0.00028511,2]
[425807001,1781919042000,-181.08010149,0.00028564,2]
[425807000,1781919042000,-15732.3474,0.00028531,14]
[425807003,1781919042000,-217.15233878,0.00028564,2]
[425807007,1781919042000,-402.47050473,0.00028566,2]
[425807006,1781919042000,-416.80169399,0.00028564,2]
[425806998,1781919042000,-7772.66830685,0.00028531,14]
[425807008,1781919042000,-151.0,0.00028566,2]
[425807019,1781919042000,-153.07,0.0002875,7]
[425807009,1781919042000,-664.82,0.000286,30]
[425807011,1781919042000,-160.34,0.0002863,2]
[425807020,1781919042000,-183.68,0.0002875,7]
[425807018,1781919042000,-159.7,0.00028696,7]
[425807015,1781919042000,-227.38,0.0002863,30]
[425807016,1781919042000,-159.7,0.0002863,2]
[425807017,1781919042000,-160.34,0.00028696,7]
[425807012,1781919042000,-158.12,0.0002863,30]
[425807013,1781919042000,-159.35,0.0002863,30]
[425807014,1781919042000,-285.21,0.0002863,30]
[425807021,1781919042000,-160.34,0.00028763,30]
[425807010,1781919042000,-209.48,0.0002863,30]
[425806997,1781919042000,-200.0,0.0002852,2]
[425807025,1781919042000,-296.0949529,0.00028786,2]
[425806992,1781919042000,-402.47050455,0.00028456,2]
[425806969,1781919042000,-416.80169399,0.00028016,2]
[425806973,1781919042000,-2000.0,0.000281,2]
[425806971,1781919042000,-402.47050455,0.00028071,2]
[425806970,1781919042000,-4405.97848613,0.00028031,14]
[425806972,1781919042000,-151.0,0.00028071,2]
[425806974,1781919042000,-402.47050455,0.00028126,2]
[425806977,1781919042000,-402.47050455,0.00028181,2]
[425806975,1781919042000,-151.0,0.00028126,2]
[425806984,1781919042000,-402.47050455,0.00028291,2]
[425806979,1781919042000,-402.47050455,0.00028236,2]
[425806976,1781919042000,-502.0,0.00028154,3]
[425806981,1781919042000,-151.0,0.00028267,2]
[425806978,1781919042000,-151.0,0.00028181,2]
[425806983,1781919042000,-151.0,0.0002829,2]
[425806980,1781919042000,-151.0,0.00028236,2]
[425806982,1781919042000,-400.0,0.00028276,2]
[425806986,1781919042000,-200.0,0.00028297,2]
[425806988,1781919042000,-151.0,0.00028346,2]
[425806985,1781919042000,-151.0,0.00028291,2]
[425806987,1781919042000,-402.47050455,0.00028346,2]
[425806989,1781919042000,-402.47050455,0.00028401,2]
[425806990,1781919042000,-151.0,0.00028401,2]
[425806994,1781919042000,-5087.15049895,0.00028467,2]
[425806995,1781919042000,-402.47050455,0.00028511,2]
[425806991,1781919042000,-199.96658507,0.0002842,2]
[425806993,1781919042000,-151.0,0.00028456,2]
[425807026,1781919042000,-209.48,0.00028797,7]
[425807024,1781919042000,-150.0,0.00028767,2]
[425807023,1781919042000,-519.01954751,0.00028766,2]
[425807056,1781919042000,-159.7,0.00028964,30]
[425807060,1781919042000,-160.34,0.00029031,2]
[425807053,1781919042000,-209.48,0.00028964,2]
[425807059,1781919042000,-158.12,0.00029006,7]
[425807062,1781919042000,-160.34,0.00029098,7]
[425807057,1781919042000,-574.9,0.00029,2]
[425807058,1781919042000,-400.0,0.00029,2]
[425807061,1781919042000,-159.7,0.00029031,2]
[425807063,1781919042000,-159.7,0.00029098,7]
[425807064,1781919042000,-187.78006524,0.00029112,2]
[425807070,1781919042000,-209.48,0.00029132,30]
[425807066,1781919042000,-225.18697532,0.00029112,2]
[425807067,1781919042000,-151.0,0.00029112,2]
[425807068,1781919042000,-381.80942428,0.00029112,2]
[425807069,1781919042000,-416.80169399,0.00029112,2]
[425807065,1781919042000,-151.0,0.00029112,2]
[425807071,1781919042000,-159.35,0.00029132,7]
[425807072,1781919042000,-227.38,0.00029132,30]
[425807073,1781919042000,-1000.0,0.00029155,2]
[425807074,1781919042000,-160.34,0.00029165,30]
[425807076,1781919042000,-502.0,0.0002917,4]
[425807075,1781919042000,-159.7,0.00029165,30]
[425807077,1781919042000,-294.56382037,0.0002919,2]
[425807078,1781919042000,-160.42,0.00029232,2]
[425807080,1781919042000,-209.48,0.00029299,7]
[425807055,1781919042000,-227.38,0.00028964,2]
[425807054,1781919042000,-160.34,0.00028964,30]
[425807079,1781919042000,-159.78,0.00029232,2]
[425807050,1781919042000,-158.0,0.0002892,30]
[425807052,1781919042000,-152.0,0.0002892,30]
[425807028,1781919042000,-500.0,0.00028818,17]
[425807031,1781919042000,-151.0,0.00028838,2]
[425807030,1781919042000,-159.7,0.0002883,2]
[425807032,1781919042000,-200.0,0.00028845,2]
[425807022,1781919042000,-159.7,0.00028763,30]
[425807029,1781919042000,-160.34,0.0002883,2]
[425807034,1781919042000,-150.0,0.00028871,5]
[425807033,1781919042000,-2626.10166162,0.00028856,2]
[425807036,1781919042000,-159.7,0.00028897,7]
[425807035,1781919042000,-160.34,0.00028897,7]
[425807039,1781919042000,-291.0,0.00028904,2]
[425807027,1781919042000,-227.38,0.00028797,7]
[425807041,1781919042000,-297.0,0.00028919,30]
[425807038,1781919042000,-1160.0,0.00028904,2]
[425807051,1781919042000,-158.0,0.0002892,30]
[425807048,1781919042000,-156.0,0.00028919,30]
[425807049,1781919042000,-233.0,0.00028919,30]
[425807046,1781919042000,-154.0,0.00028919,30]
[425807047,1781919042000,-165.0,0.00028919,30]
[425807044,1781919042000,-152.0,0.00028919,30]
[425807043,1781919042000,-151.0,0.00028919,30]
[425807042,1781919042000,-431.0,0.00028919,30]
[425807040,1781919042000,-3000.0,0.00028908,3]
[425807037,1781919042000,-202.0,0.000289,2]
[425807045,1781919042000,-190.0,0.00028919,30]
[425807121,1781919043000,-200.0,0.00029925,2]
[425807124,1781919043000,-246.14,0.0003,2]
[425807123,1781919043000,-200.0,0.00029941,2]
[425807122,1781919043000,-151.0,0.00029934,2]
[425807107,1781919043000,-297.0,0.00029919,30]
[425807118,1781919043000,-158.0,0.0002992,30]
[425807119,1781919043000,-158.0,0.0002992,30]
[425807117,1781919043000,-233.0,0.00029919,30]
[425807116,1781919043000,-156.0,0.00029919,30]
[425807120,1781919043000,-152.0,0.0002992,30]
[425807125,1781919043000,-168.0,0.00030037,2]
[425807129,1781919043000,-302.62818441,0.00030137,2]
[425807134,1781919043000,-1000.0,0.00030164,2]
[425807128,1781919043000,-150.0,0.00030137,2]
[425807130,1781919043000,-188.63223808,0.00030137,30]
[425807127,1781919043000,-162.95,0.00030136,2]
[425807133,1781919043000,-1000.0,0.00030164,2]
[425807136,1781919043000,-1000.0,0.00030164,2]
[425807131,1781919043000,-500.0,0.00030137,3]
[425807135,1781919043000,-1000.0,0.00030164,2]
[425807132,1781919043000,-633.49537877,0.00030152,2]
[425807137,1781919043000,-1011.671134,0.00030164,2]
[425807113,1781919043000,-190.0,0.00029919,30]
[425807138,1781919043000,-502.0,0.00030187,5]
[425807126,1781919043000,-519.01954751,0.00030135,2]
[425807105,1781919043000,-1855.41,0.0002988,2]
[425807099,1781919043000,-5087.15049895,0.000298,2]
[425807114,1781919043000,-154.0,0.00029919,30]
[425807141,1781919043000,-151.0,0.00030208,2]
[425807087,1781919043000,-150.0,0.00029534,2]
[425807086,1781919043000,-200.0,0.00029393,2]
[425807084,1781919043000,-158.12,0.00029383,2]
[425807085,1781919043000,-151.0,0.00029386,2]
[425807083,1781919043000,-400.0,0.00029349,2]
[425807082,1781919043000,-227.38,0.00029299,7]
[425807088,1781919043000,-1163.73,0.00029598,2]
[425807093,1781919043000,-381.80942428,0.0002966,2]
[425807089,1781919043000,-194.72792766,0.0002966,2]
[425807094,1781919043000,-416.80169399,0.0002966,2]
[425807109,1781919043000,-431.0,0.00029919,30]
[425807091,1781919043000,-233.5188934,0.0002966,2]
[425807092,1781919043000,-151.0,0.0002966,2]
[425807095,1781919043000,-560.2527,0.00029662,2]
[425807097,1781919043000,-6085.952,0.00029699,23]
[425807096,1781919043000,-500.0,0.00029683,18]
[425807098,1781919043000,-168.691,0.00029699,23]
[425807101,1781919043000,-1000.0,0.0002988,2]
[425807112,1781919043000,-152.0,0.00029919,30]
[425807111,1781919043000,-151.0,0.00029919,30]
[425807100,1781919043000,-2626.10166162,0.00029844,2]
[425807115,1781919043000,-165.0,0.00029919,30]
[425807102,1781919043000,-1783.11,0.0002988,2]
[425807090,1781919043000,-151.0,0.0002966,2]
[425807139,1781919043000,-226.0,0.00030196,5]
[425807143,1781919043000,-151.0,0.00030208,2]
[425807195,1781919043000,-150.0,0.00031008,2]
[425807174,1781919043000,-297.0,0.00030919,30]
[425807177,1781919043000,-152.0,0.00030919,30]
[425807176,1781919043000,-151.0,0.00030919,30]
[425807178,1781919043000,-190.0,0.00030919,30]
[425807173,1781919043000,-241.0,0.000309,120]
[425807175,1781919043000,-431.0,0.00030919,30]
[425807180,1781919043000,-165.0,0.00030919,30]
[425807179,1781919043000,-154.0,0.00030919,30]
[425807172,1781919043000,-2626.10166162,0.00030833,2]
[425807181,1781919043000,-156.0,0.00030919,30]
[425807184,1781919043000,-158.0,0.0003092,30]
[425807171,1781919043000,-154.46288722,0.00030833,2]
[425807186,1781919043000,-162.59,0.00031,2]
[425807185,1781919043000,-152.0,0.0003092,30]
[425807189,1781919043000,-162.58,0.00031,2]
[425807192,1781919043000,-162.58,0.00031,2]
[425807190,1781919043000,-162.58,0.00031,2]
[425807188,1781919043000,-162.58,0.00031,2]
[425807191,1781919043000,-162.58,0.00031,2]
[425807182,1781919043000,-233.0,0.00030919,30]
[425807194,1781919043000,-162.58,0.00031,2]
[425807193,1781919043000,-162.58,0.00031,2]
[425807196,1781919043000,-150.0,0.00031008,2]
[425807144,1781919043000,-381.80942428,0.00030208,2]
[425807187,1781919043000,-162.58,0.00031,2]
[425807169,1781919043000,-381.80942428,0.00030756,2]
[425807183,1781919043000,-158.0,0.0003092,30]
[425807166,1781919043000,-209.40437684,0.00030756,2]
[425807168,1781919043000,-151.0,0.00030756,2]
[425807142,1781919043000,-315.77328749,0.00030208,2]
[425807145,1781919043000,-416.80169399,0.00030208,2]
[425807146,1781919043000,-151.0,0.00030239,2]
[425807147,1781919043000,-273.0,0.00030292,2]
[425807148,1781919043000,-400.0,0.00030305,2]
[425807149,1781919043000,-1276.0,0.00030389,2]
[425807150,1781919043000,-1360.0,0.00030389,2]
[425807152,1781919043000,-1229.0,0.00030389,2]
[425807153,1781919043000,-7139.19803172,0.00030432,120]
[425807151,1781919043000,-383.0,0.00030389,2]
[425807154,1781919043000,-644.21,0.00030445,2]
[425807155,1781919043000,-644.27,0.00030452,2]
[425807140,1781919043000,-201.93286098,0.00030208,2]
[425807167,1781919043000,-151.0,0.00030756,2]
[425807157,1781919043000,-151.0,0.00030482,2]
[425807158,1781919043000,-200.0,0.00030489,2]
[425807159,1781919043000,-1711.0,0.00030558,10]
[425807161,1781919043000,-152.78175495,0.00030685,30]
[425807163,1781919043000,-296.0949529,0.00030729,2]
[425807170,1781919043000,-416.80169399,0.00030756,2]
[425807160,1781919043000,-400.0,0.00030615,2]
[425807162,1781919043000,-250.0,0.0003069,2]
[425807165,1781919043000,-747.80937859,0.00030755,2]
[425807164,1781919043000,-599.60298507,0.00030755,2]
[425807156,1781919043000,-396.25,0.00030452,2]
[425807228,1781919044000,-500.84,0.00031353,60]
[425807230,1781919044000,-500.84,0.00031353,60]
[425807231,1781919044000,-500.84,0.00031353,60]
[425807237,1781919044000,-500.84,0.00031353,60]
[425807222,1781919044000,-1111.3935988,0.00031319,2]
[425807229,1781919044000,-500.84,0.00031353,60]
[425807226,1781919044000,-500.84,0.00031353,60]
[425807227,1781919044000,-500.84,0.00031353,60]
[425807225,1781919044000,-500.84,0.00031353,60]
[425807233,1781919044000,-500.84,0.00031353,60]
[425807232,1781919044000,-500.84,0.00031353,60]
[425807234,1781919044000,-500.84,0.00031353,60]
[425807239,1781919044000,-500.84,0.00031353,60]
[425807235,1781919044000,-500.84,0.00031353,60]
[425807242,1781919044000,-500.84,0.00031353,60]
[425807241,1781919044000,-500.84,0.00031353,60]
[425807240,1781919044000,-500.84,0.00031353,60]
[425807238,1781919044000,-500.84,0.00031353,60]
[425807243,1781919044000,-13329.750308,0.00031393,2]
[425807244,1781919044000,-2000.0,0.000314,2]
[425807247,1781919044000,-164.0306643,0.00031504,2]
[425807245,1781919044000,-1013.34693562,0.00031457,2]
[425807246,1781919044000,-383.0,0.00031481,30]
[425807249,1781919044000,-150.0,0.00031507,2]
[425807236,1781919044000,-500.84,0.00031353,60]
[425807223,1781919044000,-200.0,0.0003133,2]
[425807252,1781919044000,-500.0,0.00031539,7]
[425807220,1781919044000,-381.80942428,0.00031304,2]
[425807204,1781919044000,-284.4061351,0.00031037,2]
[425807203,1781919044000,-150.0,0.00031011,2]
[425807200,1781919044000,-150.0,0.00031008,2]
[425807197,1781919044000,-167.235,0.00031008,2]
[425807201,1781919044000,-150.0,0.00031008,2]
[425807198,1781919044000,-150.0,0.00031008,2]
[425807202,1781919044000,-150.0,0.00031008,2]
[425807199,1781919044000,-150.0,0.00031008,2]
[425807205,1781919044000,-5087.15049895,0.00031133,2]
[425807211,1781919044000,-396.43,0.00031266,2]
[425807207,1781919044000,-1000.0,0.000312,7]
[425807224,1781919044000,-500.84,0.00031353,60]
[425807209,1781919044000,-153.94033386,0.00031265,2]
[425807210,1781919044000,-396.26,0.00031266,2]
[425807208,1781919044000,-502.0,0.00031203,6]
[425807206,1781919044000,-168.11420705,0.0003117,2]
[425807216,1781919044000,-482.34,0.00031271,2]
[425807213,1781919044000,-644.21,0.00031271,2]
[425807215,1781919044000,-482.37,0.00031271,2]
[425807214,1781919044000,-396.25,0.00031271,2]
[425807218,1781919044000,-217.15233878,0.00031304,2]
[425807217,1781919044000,-701.1602897,0.00031287,2]
[425807221,1781919044000,-416.80169399,0.00031304,2]
[425807219,1781919044000,-151.0,0.00031304,2]
[425807212,1781919044000,-396.26,0.00031271,2]
[425807251,1781919044000,-300.0,0.00031539,10]
[425807250,1781919044000,-1545.92,0.00031507,120]
[425807248,1781919044000,-519.01954751,0.00031504,2]
[425807278,1781919044000,-158.0,0.0003192,30]
[425807283,1781919044000,-51269.070359,0.00032,3]
[425807282,1781919044000,-800.0,0.00032,2]
[425807284,1781919044000,-5796.79864298,0.00032,3]
[425807285,1781919044000,-40000.0,0.00032,8]
[425807288,1781919044000,-151.0,0.00032089,2]
[425807286,1781919044000,-2000.0,0.00032,2]
[425807287,1781919044000,-396.12,0.00032088,2]
[425807289,1781919044000,-644.1,0.00032089,2]
[425807291,1781919044000,-644.15,0.00032093,2]
[425807290,1781919044000,-482.29,0.00032089,2]
[425807275,1781919044000,-160.91280991,0.00031919,30]
[425807294,1781919044000,-838.74950194,0.00032126,2]
[425807301,1781919044000,-913.04816818,0.000323,2]
[425807297,1781919044000,-18219.84935386,0.00032204,2]
[425807300,1781919044000,-157.0,0.0003224,2]
[425807295,1781919044000,-635.94610025,0.00032127,2]
[425807299,1781919044000,-502.0,0.0003222,7]
[425807296,1781919044000,-204.76,0.00032166,5]
[425807298,1781919044000,-151.0,0.0003221,5]
[425807302,1781919044000,-834.70062088,0.00032357,2]
[425807303,1781919044000,-233.5188934,0.000324,2]
[425807305,1781919044000,-381.80942428,0.000324,2]
[425807259,1781919044000,-711.88905688,0.00031846,2]
[425807292,1781919044000,-482.4,0.00032095,2]
[425807281,1781919044000,-1000.0,0.00031999,2]
[425807293,1781919044000,-482.37,0.00032095,2]
[425807279,1781919044000,-152.0,0.0003192,30]
[425807280,1781919044000,-1001.0,0.00031945,120]
[425807254,1781919044000,-190.14831548,0.00031556,60]
[425807253,1781919044000,-70909.763282,0.0003154,2]
[425807256,1781919044000,-168.86020038,0.00031729,2]
[425807255,1781919044000,-500.0,0.00031556,60]
[425807257,1781919044000,-2566.0,0.0003178,10]
[425807258,1781919044000,-2626.10166162,0.00031822,2]
[425807260,1781919044000,-225.18697532,0.00031852,2]
[425807261,1781919044000,-151.0,0.00031852,2]
[425807266,1781919044000,-49572.19616998,0.000319,7]
[425807262,1781919044000,-381.80942428,0.00031852,2]
[425807267,1781919044000,-3700.0,0.000319,11]
[425807304,1781919044000,-151.0,0.000324,2]
[425807273,1781919044000,-154.0,0.00031919,30]
[425807263,1781919044000,-416.80169399,0.00031852,2]
[425807274,1781919044000,-165.0,0.00031919,30]